Cogmind - Beta 17 @@@ ROGUE MODE // 2026.07.25 @ 03:39:55 Player: naththebg Result: Destroyed 0b10! Performance ------------- Evolutions (9) 4500 Regions Visited (13) 2600 Robots Destroyed (321) 1605 Value Destroyed (14564) 14564 Prototype IDs (51) 1020 Alien Tech Used (8) 1600 Bonus (36691) 36691 TOTAL SCORE: 62580 Bonus ------- Triggered High Security 500 High Alert Combat Kills 5700 Follower Combat Kills 1424 Prayed to X0-1V1 5000 Major X0-1V1 Interference 11250 Used Core Reset Matrix 3000 Met Sigix 2000 Escaped with Sigix 5000 Win 3000 Friendly Fire -183 Cogmind --------- Core Integrity 1082/1570 Matter 1204/1300 Energy 113/1586 System Corruption 13% Temperature Cool (4) Movement Walking (48) Location Tau Ceti IV Orbit Parts ------- > --- POWER (2) -------- Antimatter-Quantum Reactor > --- PROPULSION (5) --- Shield-QT Exoskeleton > --- UTILITY (14) ----- Scrap Engine Improved Weapon Cycler Hacking Suite Hacking Suite Improved System Shield > --- WEAPON (4) ------- (None) > --- INVENTORY (5) ---- Huge Storage Unit Sigix Containment Pod Peak State ------------ > --- POWER ------------ Antimatter-Quantum Reactor > --- PROPULSION ------- Shield-QT Exoskeleton > --- UTILITY ---------- Armored Scrap Engine Advanced Heat Sink Advanced Heat Sink Large Storage Unit Improved Weapon Cycler Advanced Phase Shifter Experimental Core Shielding Phase Armor Thermal Barrier Advanced Force Field Improved System Shield X0-1V1's Piety Tracker > --- WEAPON ----------- Hpw. Directed Construct/G Cycling Thermal Nova Construct/C Hpw. Directed Quantum Construct/G Hpw. Thermal Nova Construct/G > --- INVENTORY -------- Advanced Heat Sink Huge Storage Unit High-capacity Matter Pod Improved Kinecellerator Advanced Force Field Phase Redirector Improved Component Analysis Suite Transdimensional Reconstructor Subatomic Replicator Long-range Proton Cannon Rocket Array Sigix Broadsword Sigix Containment Pod [Rating: 222] Favorites ----------- Power Constructs Engine Heavy Deuterium Engine Power Core Nuclear Core Reactor Constructs Propulsion Light Treads Treads Light Treads Leg Constructs Wheel Subdweller Monowheel Utility X0-1V1's Piety Tracker Device X0-1V1's Piety Tracker Storage Large Storage Unit Processor Enhanced Optical Array Hackware Hacking Suite Protection Improved Medium Armor Plating Artifact Phase Armor Weapon Gatling Laser Energy Gun Gatling Laser Energy Cannon Constructs Ballistic Gun Assault Rifle Ballistic Cannon Gauss Cannon Launcher Grenade Launcher Impact Weapon Maul Slashing Weapon Sigix Broadsword Build | -11 -10 -10 -8 -7 -7 -7 -5 -4 -3 -3 -2 -1 -1 ------- Run | Yrd Mat Sub Mat Fac Sto Rec Fac Fac Res Qua Res Acc Com Slots Evolved 18 | . . . 4 2 . . 4 2 2 . 2 2 . Power . | . . . . . . . . . . . . . . Propulsion 3 | . . . 1 . . . 2 . . . . . . Utility 13 | . . . 2 2 . . 2 2 1 . 2 2 . Weapon 2 | . . . 1 . . . . . 1 . . . . Parts Attached 141 | 6 12 3 24 21 12 11 3 7 3 8 13 . 18 Power 17 | 1 3 1 4 2 5 1 . . . . . . . Engine 14 | 1 3 1 3 1 4 1 . . . . . . . Core 3 | . . . 1 1 1 . . . . . . . . Reactor . | . . . . . . . . . . . . . . Propulsion 21 | 2 2 2 7 4 1 2 1 . . . . . . Treads 9 | . 2 2 4 . 1 . . . . . . . . Leg 7 | 2 . . 3 1 . . 1 . . . . . . Wheel 5 | . . . . 3 . 2 . . . . . . . Hover . | . . . . . . . . . . . . . . Flight . | . . . . . . . . . . . . . . Utility 67 | 1 4 . 4 9 1 2 2 7 3 5 13 . 16 Device 43 | . 2 . 2 3 1 1 1 5 3 3 12 . 10 Storage 3 | 1 1 . . 1 . . . . . . . . . Processor 3 | . . . . . . . 1 . . . 1 . 1 Hackware 6 | . . . 1 1 . . . . . . . . 4 Protection 10 | . 1 . 1 4 . 1 . 2 . . . . 1 Artifact 2 | . . . . . . . . . . 2 . . . Weapon 36 | 2 3 . 9 6 5 6 . . . 3 . . 2 Energy Gun 24 | 1 2 . 8 3 4 5 . . . 1 . . . Energy Cannon 3 | . . . . 1 . 1 . . . . . . 1 Ballistic Gun 3 | 1 . . . 1 . . . . . 1 . . . Ballistic Cannon 2 | . . . 1 . 1 . . . . . . . . Launcher 3 | . 1 . . 1 . . . . . . . . 1 Special Weapon . | . . . . . . . . . . . . . . Impact Weapon . | . . . . . . . . . . . . . . Slashing Weapon 1 | . . . . . . . . . . 1 . . . Piercing Weapon . | . . . . . . . . . . . . . . Special Melee Weapon . | . . . . . . . . . . . . . . Unidentified Prototypes 23 | . 1 . 2 4 4 1 . . . 3 5 . 3 Parts Lost 65 | . 3 3 7 1 4 10 1 2 . 4 4 . 26 Power 8 | . 2 1 1 1 . 2 . . . . . . 1 Propulsion 11 | . . 2 3 . 1 2 . . . . . . 3 Utility 25 | . 1 . . . 1 1 1 2 . 3 4 . 12 Weapon 21 | . . . 3 . 2 5 . . . 1 . . 10 Highest Loss Streak 20 | . 1 2 7 1 1 4 1 2 . 3 1 . 20 To Critical Strikes 6 | . . . . . . . . . . . . . 6 Average Backups 15 | 4 9 13 14 20 24 19 12 14 14 13 11 11 10 Power 1 | 1 1 2 3 3 3 1 1 1 1 . . . . Propulsion 1 | 2 5 3 2 2 1 1 . . . . . . . Utility 6 | . 1 3 3 4 5 7 7 10 9 9 7 7 6 Weapon 5 | . 2 3 5 10 14 8 4 3 3 2 1 2 2 Tool/Special . | . . . . . . . . . . . . . . Unused Backups 55 | . 1 3 4 5 2 22 2 1 5 8 . . 2 Power 5 | . . . . 1 . 2 . . . 2 . . . Propulsion 7 | . . 3 1 . . 2 . . . 1 . . . Utility 16 | . . . 2 . 1 3 1 1 3 3 . . 2 Weapon 27 | . 1 . 1 4 1 15 1 . 2 2 . . . Tool/Special . | . . . . . . . . . . . . . . Average Slot Usage (%) 81 | . 92 99 92 99 97 81 63 65 70 67 65 67 68 Engine 5 | . 13 14 6 1 6 10 . . . . . . . Core 1 | . . . 2 5 4 . 3 5 . . . . . Reactor 1 | . . . . . . . . . 3 4 4 4 3 Treads 6 | . 20 27 12 . 6 3 1 . . . . 4 3 Leg 3 | . 7 . 12 10 . . 1 1 . 2 3 . . Wheel 4 | . . . . 12 15 9 1 . . . . . . Device 21 | . 2 14 15 21 21 21 15 21 30 31 32 35 30 Storage 6 | . 14 14 9 7 7 6 5 5 4 4 4 4 3 Hackware 3 | . . . 6 8 7 4 . . . . . . 8 Protection 2 | . 5 . 2 6 2 . 5 6 4 1 . . . Energy Gun 15 | . 15 27 24 22 22 17 10 10 14 6 4 4 5 Energy Cannon 2 | . . . . . . 1 8 4 1 5 5 8 5 Ballistic Gun 1 | . 12 . . . . . 2 . . 1 2 . . Peak Build Rating 222 | 6 23 23 45 60 61 81 100 128 154 203 208 210 222 Average Rating 90 | 3 7 22 37 55 57 57 90 114 148 171 193 208 200 On Entrance 91 | . 6 23 23 45 58 60 73 91 128 151 202 204 210 Avg Prop Armor Cover (%) 9 | . . . 8 5 10 11 . . . . . . . Naked Turns . | . . . . . . . . . . . . . . Heaviest Build 148 | 12 32 30 55 124 123 148 64 71 94 137 138 130 133 Greatest Support 272 | 20 40 40 60 47 12 40 85 141 133 215 248 248 272 Greatest Overweight (x) 30 | 1 . . 1 9 10 30 1 . . . . . . Average Overweight (x) 1 | . . . . 2 8 6 . . . . . . . Largest Inventory Capacity 25 | 8 15 15 15 25 25 25 15 15 15 15 15 15 15 Average Capacity 18 | 7 13 15 15 21 25 24 15 15 15 15 15 15 14 Most Carried 25 | 7 15 15 15 25 25 25 15 15 15 15 15 15 15 Average Carried 16 | 4 10 14 14 20 24 19 12 14 14 14 14 14 13 Final Capacity 25 | 8 15 15 15 25 25 15 15 15 15 15 15 15 5 Final Carried 25 | 6 15 15 15 25 24 15 13 15 15 14 15 15 3 Scrap Engine Consumption 137 | . . . . . . 52 25 8 6 22 24 . . Constructs Created 15 | . . . . . . 6 1 . 1 2 2 . 3 Constructs Modified 111 | . . . . . . 9 18 10 12 22 18 . 22 Class Distribution -------------------- 28% | Construct 18% | Mutant 16% | Scavenger-Gunner 9% | Scavenger-Tank 4% | Gunner 4% | Hacker-Construct 3% | Tank Dominant Class ---------------- Mutant | -10/Materials Mutant | -10/Subcaves Gunner | -8/Materials Scavenger-Tank | -7/Factory Scavenger-Gunner | -7/Storage Scavenger-Gunner | -7/Recycling Construct | -5/Factory Commander-Construct | -4/Factory Construct | -3/Research Construct | -3/Quarantine Construct | -2/Research Construct | -1/Access Hacker-Construct | -1/Command Resources | -11 -10 -10 -8 -7 -7 -7 -5 -4 -3 -3 -2 -1 -1 ----------- Run | Yrd Mat Sub Mat Fac Sto Rec Fac Fac Res Qua Res Acc Com Matter Collected 7625 | 245 557 65 306 527 636 1444 201 331 263 923 576 354 1197 Remotely . | . . . . . . . . . . . . . . Salvage Created 14705 | . 485 122 1965 788 1139 1151 705 514 264 1930 2595 485 2562 Parts 609 | . 34 12 100 34 36 40 28 14 5 91 110 26 79 Haulers Intercepted 13 | . 2 . 5 . 4 . . 1 . . . 1 . Recyclers Shooed 6 | . 1 . 1 . . . . . . . 4 . . Parts Field Recycled . | . . . . . . . . . . . . . . Retrieved Matter . | . . . . . . . . . . . . . . Parts Self-Destructed 2 | . . 2 . . . . . . . . . . . Prevented . | . . . . . . . . . . . . . . Parts Restored . | . . . . . . . . . . . . . . Kills | -11 -10 -10 -8 -7 -7 -7 -5 -4 -3 -3 -2 -1 -1 ------- Run | Yrd Mat Sub Mat Fac Sto Rec Fac Fac Res Qua Res Acc Com Combat Hostiles Destroyed 238 | . 18 5 36 9 16 25 16 7 3 35 34 3 31 Melee 5 | . . . . . . . . . . . 2 1 2 Guns 135 | . 9 2 24 8 16 22 4 4 2 17 14 1 12 Cannons 58 | . . . . 1 . 1 4 2 1 18 18 1 12 AOE 26 | . 9 3 10 . . . 2 . . . . . 2 Classes Destroyed 20 | . 5 . 8 4 . 1 . . . 1 . . 1 Worker 20 | . . . . 7 1 . 1 . 1 . 1 5 4 Builder 12 | . . . 1 1 1 2 2 . . . 5 . . Tunneler 3 | . . . . 1 . . . . . . 1 1 . Hauler 13 | . 2 . 5 . 4 . . 1 . . . 1 . Recycler 10 | . . . 5 2 1 . . . . . . . 2 Mechanic 3 | . . . 1 . . . . . . . . . 2 Operator 5 | . . . 1 1 1 . . . . . . 1 1 Watcher 15 | . 1 . 5 . . . 2 . 1 2 . 2 2 Swarmer 47 | . 11 3 10 . 3 . 2 . . 9 7 . 2 Grunt 82 | . 4 . 12 4 5 8 1 3 2 11 16 . 16 Brawler 5 | . . . 2 . . 1 . . . 2 . . . Duelist 4 | . . . 2 . . . . . . 1 . . 1 Protector 2 | . . . 2 . . . . . . . . . . Researcher 1 | . . . . . . . . . . 1 . . . Sentry 38 | . . . 8 1 7 6 4 4 1 4 2 . 1 Hunter 23 | . . . . 2 . 2 7 . . 2 4 . 6 Programmer 25 | . . . . 2 1 3 2 . . 6 5 3 3 Executioner 2 | . . . . . . . . . . . . . 2 Subdweller 10 | . 3 2 . . . 5 . . . . . . . Knight 1 | . . . . . . 1 . . . . . . . Best Kill Streak 10 | . 4 3 10 8 7 3 6 4 2 10 9 4 9 Combat Bots Only 10 | . 3 3 9 4 4 3 6 4 2 10 9 2 7 Max Kills in Single Turn 4 | . 3 3 4 2 2 1 4 1 1 2 3 3 2 Gunslinging 1 | . . . 1 . . . . . . . . . . Exploded 4 | . 3 3 4 . . . 2 . . . . . 2 Melee 1 | . . . . . . . . . . . 1 1 1 Uniques/NPCs Destroyed . | . . . . . . . . . . . . . . Combat | -11 -10 -10 -8 -7 -7 -7 -5 -4 -3 -3 -2 -1 -1 -------- Run | Yrd Mat Sub Mat Fac Sto Rec Fac Fac Res Qua Res Acc Com Hostile Shots Fired 1940 | . 53 15 124 56 159 241 64 24 2 246 371 46 539 Missed 716 | . 14 3 33 19 77 78 24 9 1 110 137 14 197 Hits 1224 | . 39 12 91 37 82 163 40 15 1 136 234 32 342 Melee 20 | . . . 6 . . 3 . . . 4 . 4 3 Projectile 1204 | . 39 12 85 37 82 160 40 15 1 132 234 28 339 AOE 4 | . . 3 . . . 1 . . . . . . . Critical Strikes 54 | . . . 4 . . 9 1 2 . 6 11 5 16 Part Disruptions 1 | . . . . . . . . . . . . 1 . Damage Taken 17804 | . 581 359 1548 474 656 2057 704 247 130 1795 1793 410 7050 Core 2355 | . 68 85 154 100 74 308 67 23 . 200 438 83 755 Absorbed by Shields 4244 | . . . . . . . . 112 7 1075 1679 426 945 Reduced by Siege Mode 41 | . . . . . . . . . . . 10 . 31 Redirected to Core 672 | . . . . . . . . . . 104 383 83 102 Ignored by Resistances 2268 | . . . . 14 102 78 . . . . 1854 10 210 Regen/Repaired (Parts) 3587 | . . . 104 . . 5 265 65 176 845 575 . 1552 Core Remaining (%) 75 | 100 . 38 67 . . 84 93 97 . 66 69 . 68 Volleys Fired 673 | . 56 13 81 39 37 62 39 23 12 106 99 12 94 Largest 6 | . 2 2 3 3 3 6 5 3 4 4 4 4 4 Hottest 439 | . 70 90 165 190 240 439 262 232 276 306 215 215 378 Shots Fired 1941 | . 106 24 207 106 108 195 125 63 48 301 327 47 284 Gun 1326 | . 100 22 202 100 107 187 83 45 36 153 161 12 118 Cannon 601 | . . . 4 6 1 8 42 18 12 148 166 35 161 Launcher 14 | . 6 2 1 . . . . . . . . . 5 Special . | . . . . . . . . . . . . . . Kinetic 455 | . 50 . 4 . 1 10 26 18 8 66 131 23 118 Thermal 1251 | . 50 . 96 106 107 185 99 43 28 198 191 12 136 Explosive 14 | . 6 2 1 . . . . . . . . . 5 Electromagnetic 221 | . . 22 106 . . . . 2 12 37 5 12 25 Robot Hit Streak 27 | . 20 10 25 9 20 18 27 13 7 18 13 8 19 Robot Miss Streak 13 | . 6 2 5 4 3 8 13 3 4 8 5 2 4 Penetration Max 2 | . . . . . . . 1 . 1 . 2 . . Secondary Targets 13 | . . . 6 1 3 3 . . . . . . . Max Gunslinging Chain 2 | . . . 2 1 1 1 . . . . . . . Shots Hit Robots 1272 | . 73 14 137 63 81 145 80 55 26 192 211 27 168 Core Hits 790 | . 37 6 94 32 53 104 70 46 20 118 89 11 110 Critical Kills 3 | . . . . . . . 1 . . 2 . . . Critical Parts Destroyed 3 | . 1 . . . . . . . . 2 . . . Critical Strikes 34 | . 6 . 2 4 . 1 1 1 2 9 7 . 1 Burn 20 | . 5 . . 4 . 1 . 1 2 3 4 . . Destroy 6 | . 1 . . . . . 1 . . 4 . . . Blast 4 | . . . . . . . . . . 2 1 . 1 Corrupt 2 | . . . 2 . . . . . . . . . . Sever 2 | . . . . . . . . . . . 2 . . Melee Attacks 12 | . . . . . . . . . . 3 5 . 4 Impact . | . . . . . . . . . . . . . . Slashing 12 | . . . . . . . . . . 3 5 . 4 Piercing . | . . . . . . . . . . . . . . Sneak Attacks . | . . . . . . . . . . . . . . Combat Hostiles . | . . . . . . . . . . . . . . Follow-up Attacks . | . . . . . . . . . . . . . . Damage Inflicted 40102 | 7 1459 306 4040 1375 1770 3287 1950 1341 769 5670 8014 1624 8490 Guns 21778 | . 906 183 2543 1215 1770 3203 1089 967 569 2906 3523 126 2778 Cannons 11852 | . . . . 160 . 84 457 362 200 2764 3488 935 3402 Explosions 4554 | . 536 123 1497 . . . 404 . . . 222 134 1638 Melee 466 | . . . . . . . . . . . 367 . 99 Ramming 1452 | 7 17 . . . . . . 12 . . 414 429 573 Kinetic 8498 | . 439 . . . . 102 292 362 126 1165 2823 697 2492 Thermal 23858 | . 467 . 2784 1375 1770 3185 1658 901 390 3601 4229 238 3260 Explosive 2588 | . 536 123 157 . . . . . . . . 134 1638 Electromagnetic 3149 | . . 183 1099 . . . . 66 253 904 90 126 428 Impact . | . . . . . . . . . . . . . . Slashing 466 | . . . . . . . . . . . 367 . 99 Piercing . | . . . . . . . . . . . . . . Phasic 91 | . . . . . . . . . . . 91 . . Highest Corruption 34 | . . . 8 4 12 34 . . . 5 4 9 13 Average Corruption 6 | . . . 8 3 7 7 . . . 2 2 7 8 Corruption Purged . | . . . . . . . . . . . . . . Corruption Blocked . | . . . . . . . . . . . . . . Effects 230 | . . . 14 6 43 92 . . . 16 11 6 42 Message Errors 49 | . . . 3 1 8 22 . . . 4 3 . 8 Matter Fused 51 | . . . 2 3 10 18 . . . 7 1 2 8 Heat Flow Errors 26 | . . . 2 . 3 11 . . . 1 1 1 7 Energy Discharges 29 | . . . 3 1 4 15 . . . . 1 1 4 Parts Rejected 9 | . . . . . 2 1 . . . . 3 . 3 Parts Fused 2 | . . . . . 1 . . . . 1 . . . Data Loss (minor) 29 | . . . 2 . 5 14 . . . 3 . 1 4 Data Loss (major) 8 | . . . . . 3 3 . . . . 1 . 1 Misfires 9 | . . . 1 1 3 4 . . . . . . . Alerts 4 | . . . 1 . . 3 . . . . . . . Misdirections 2 | . . . . . 1 . . . . . . . 1 Weapon Failures 12 | . . . . . 3 1 . . . . 1 1 6 Overload Shots 1 | . . . . . . 1 . . . . . . . Overflow Damage 900 | . 8 36 80 . . . 47 . . 36 249 278 166 Projectiles 346 | . . . . . . . 5 . . 36 86 143 76 Explosions 278 | . 8 36 80 . . . 42 . . . 112 . . Melee 276 | . . . . . . . . . . . 51 135 90 Knockbacks 71 | . 1 . . . . 1 6 4 . 5 25 3 26 Impact 11 | . 1 . . . . . . 1 . . 4 1 4 Kinetic 52 | . . . . . . 1 5 3 . 5 17 2 19 Secondary 8 | . . . . . . . 1 . . . 4 . 3 Self-Inflicted Damage 781 | . 48 29 240 . . . . . . . 53 76 335 Shots 25 | . 3 1 6 . . . . . . . 1 1 13 Rammed 40 | . 3 . . . . . . . . . 8 8 21 Targets Rammed 58 | 1 5 . . . . . . 1 . . 14 10 27 Kicked 10 | 1 2 . . . . . . 1 . . 6 . . Crushed 8 | . . . . . . . . . . . . 2 6 Highest Temperature 430 | . 90 201 321 39 268 380 197 196 162 . 209 191 430 Average Temperature 81 | . 25 135 75 7 88 126 82 105 87 . 49 37 88 Received Heat Transfer 2706 | . 177 36 513 123 186 806 27 87 12 181 373 4 181 Effects 8 | . . . 1 . 4 3 . . . . . . . Energy Bleed 4 | . . . 1 . 1 2 . . . . . . . Interference 3 | . . . . . 3 . . . . . . . . Matter Decay 1 | . . . . . . 1 . . . . . . . Siege Activations 6 | . . . . . . . . . . . 2 . 4 Total Turns 115 | . . . . . . . . . . . 16 . 99 Longest Duration 38 | . . . . . . . . . . . 15 . 38 Martial Activations . | . . . . . . . . . . . . . . Shielding Activations . | . . . . . . . . . . . . . . Robots Disrupted . | . . . . . . . . . . . . . . Combat Hostiles . | . . . . . . . . . . . . . . Robots Corrupted 5 | . . . 1 . . . . . . . 1 2 1 Combat Hostiles 1 | . . . 1 . . . . . . . . . . Parts Fried 14 | . . 1 5 . . . . . . 1 2 2 3 Impact Corruptions 15 | . . . . . . . . . . . 4 6 5 Robots Melted 16 | . . . 1 . 2 2 7 1 . . . . 3 Combat Hostiles 13 | . . . 1 . . 2 6 1 . . . . 3 Parts Melted 107 | . 4 . 6 9 19 16 22 5 1 9 12 . 4 Heat Transferred 39877 | . 1739 . 3766 2827 3660 6167 5694 2104 955 6007 5102 222 1634 Parts Sabotaged 2 | . . . . . . . . . . 2 . . . Parts Stolen . | . . . . . . . . . . . . . . Parts Stripped . | . . . . . . . . . . . . . . Power Chain Reactions 7 | . . . 7 . . . . . . . . . . Alert | -11 -10 -10 -8 -7 -7 -7 -5 -4 -3 -3 -2 -1 -1 ------- Run | Yrd Mat Sub Mat Fac Sto Rec Fac Fac Res Qua Res Acc Com Maximum Alert Level 5 | . 1 . 3 1 1 3 4 3 2 4 5 4 5 Low Security (%) 38 | 100 98 . 30 98 87 41 . . . . . . . Level 1 6 | . 1 . 23 1 12 8 . . . 7 . . . Level 2 10 | . . . 17 . . 12 . . 100 29 4 . . Level 3 32 | . . . 28 . . 36 25 100 . 52 61 51 54 Level 4 9 | . . . . . . . 74 . . 10 21 48 27 Level 5 1 | . . . . . . . . . . . 12 . 6 High Security . | . . . . . . . . . . . . . 11 Max Security . | . . . . . . . . . . . . . . Peak Influence 2016 | . 212 . 781 205 229 997 1549 986 645 1162 1680 1211 2016 Initial 998 | . . . . 200 50 13 909 752 502 344 617 998 780 Average 553 | . 84 . 385 85 101 442 1233 808 567 775 1109 1106 1125 Influence Increases 12316 | . 478 70 1472 311 677 1579 1500 386 281 1428 1534 403 2197 Destroy 0b10 Robot/C 5280 | . 300 60 680 180 380 460 380 180 140 840 680 60 940 Destroy 0b10 Robot/NC 445 | . 15 . 100 60 40 15 30 5 10 25 35 50 60 Destroy Leader 1086 | . 66 10 160 50 128 30 80 62 32 126 130 26 186 Allied During Kill 658 | . . . . . 58 27 11 114 71 59 . . 318 Successful Hack 131 | . 14 . 22 6 9 8 . . 12 . . 54 6 Select Force Hacks 210 | . . . . . . 210 . . . . . . . Disable Machine 615 | . 15 . 90 . 30 15 135 15 . 165 15 45 90 Anti-Garrison Action 150 | . . . 150 . . . . . . . . . . Destroy Structure 731 | . 38 . 60 . 2 12 44 10 16 78 216 48 207 Advance Influence 500 | . . . . . . . 500 . . . . . . Partial Spotted 15 | . 15 . . . . . . . . . . . . Lose Combat Pursuer 1005 | . 15 . 30 15 30 . . . . 135 270 120 390 Miscellaneous 1490 | . . . 180 . . 802 320 . . . 188 . . Influence Decreases 10449 | . 372 176 1029 642 754 639 938 965 626 943 967 847 1551 Entered New Map 4044 | . . 52 . 243 62 22 566 785 456 269 481 667 441 Time Decay 4374 | . 342 94 509 389 402 396 302 160 170 514 446 180 470 Lost Part 650 | . 30 30 70 10 40 100 10 20 . 40 40 . 260 Lost Ally 685 | . . . . . 80 45 60 . . 120 . . 380 Purge Threat 696 | . . . 450 . 170 76 . . . . . . . Squads Dispatched 89 | . 1 . 5 5 3 6 10 3 2 21 11 6 16 Investigation 11 | . 1 . . 1 . 1 1 . . 4 1 . 2 Extermination 21 | . . . . 3 2 3 1 . 1 4 2 1 4 Reinforcement 20 | . . . 1 1 1 . 3 1 1 6 2 2 2 Assault 26 | . . . 2 . . 2 2 2 . 4 3 3 8 Garrison 11 | . . . 2 . . . 3 . . 3 3 . . Intercept . | . . . . . . . . . . . . . . Searches Triggered . | . . . . . . . . . . . . . . Construction Impeded 3 | . . . . . . . . . . . 2 1 . Haulers Reinforced 2 | . . . . . 1 . 1 . . . . . . Active Scanning Responses . | . . . . . . . . . . . . . . Cargo Convoy Interrupts . | . . . . . . . . . . . . . . Stealth | -11 -10 -10 -8 -7 -7 -7 -5 -4 -3 -3 -2 -1 -1 --------- Run | Yrd Mat Sub Mat Fac Sto Rec Fac Fac Res Qua Res Acc Com Distress Signals 21 | . . . 2 1 2 2 1 1 1 2 6 . 3 Communications Jammed . | . . . . . . . . . . . . . . Distress Signals . | . . . . . . . . . . . . . . Times Spotted 481 | . 26 7 53 15 21 41 37 10 9 78 72 17 95 Peak Tracking Total 12 | . 3 3 10 4 4 6 5 4 5 9 12 6 10 Tactical Retreats 39 | . 1 . 2 1 2 . . . . 6 9 5 13 Traps | -11 -10 -10 -8 -7 -7 -7 -5 -4 -3 -3 -2 -1 -1 ------- Run | Yrd Mat Sub Mat Fac Sto Rec Fac Fac Res Qua Res Acc Com Traps Triggered 16 | . . . . . 2 . 1 . . 2 . . 11 Indirectly . | . . . . . . . . . . . . . . Trap Hack Attempts . | . . . . . . . . . . . . . . Triggered . | . . . . . . . . . . . . . . Disarmed . | . . . . . . . . . . . . . . Reprogrammed . | . . . . . . . . . . . . . . Reused . | . . . . . . . . . . . . . . Traps Extracted . | . . . . . . . . . . . . . . Installed . | . . . . . . . . . . . . . . Triggered . | . . . . . . . . . . . . . . Machines | -11 -10 -10 -8 -7 -7 -7 -5 -4 -3 -3 -2 -1 -1 ---------- Run | Yrd Mat Sub Mat Fac Sto Rec Fac Fac Res Qua Res Acc Com Machines Disabled 42 | . 1 . 7 . 2 1 9 1 . 11 1 3 6 Max in Single Turn 5 | . 1 . 2 . 1 1 5 1 . 1 1 3 1 Garrison Access 1 | . . . 1 . . . . . . . . . . Energy Cycler 1 | . . . . . . . . . . . . 1 . Machines Repaired . | . . . . . . . . . . . . . . Machines Dismantled . | . . . . . . . . . . . . . . Machines Sabotaged . | . . . . . . . . . . . . . . Overloaded Fab Kills . | . . . . . . . . . . . . . . Hacking | -11 -10 -10 -8 -7 -7 -7 -5 -4 -3 -3 -2 -1 -1 --------- Run | Yrd Mat Sub Mat Fac Sto Rec Fac Fac Res Qua Res Acc Com Machines Accessed 72 | . 8 . 12 6 4 12 3 1 5 5 3 3 10 Terminals 46 | . 6 . 8 2 4 3 1 1 1 4 3 3 10 Fabricators . | . . . . . . . . . . . . . . Repair Stations 3 | . . . 1 . . . 1 . 1 . . . . Recycling Units 15 | . 2 . 1 3 . 8 . . 1 . . . . Scanalyzers 4 | . . . 1 1 . . 1 . 1 . . . . Garrison Access 3 | . . . 1 . . . . . 1 1 . . . Total Hacks 177 | . 21 . 40 10 9 45 4 1 8 11 5 5 18 Successful 84 | . 11 . 24 4 6 29 2 . 3 . . 2 3 Failed 92 | . 10 . 15 6 3 16 2 1 5 11 5 3 15 Catastrophic 28 | . 2 . 5 . . 2 1 . 1 4 3 . 10 Database Lockouts 1 | . . . 1 . . . . . . . . . . Manual 67 | . 4 . 10 2 8 24 1 1 1 . . 3 13 Terminals 108 | . 18 . 25 3 9 12 2 1 1 9 5 5 18 Fabricators . | . . . . . . . . . . . . . . Repair Stations 5 | . . . 3 . . . 1 . 1 . . . . Recycling Units 44 | . 3 . 4 4 . 31 . . 2 . . . . Scanalyzers 14 | . . . 7 3 . . 1 . 3 . . . . Garrison Access 4 | . . . 1 . . . . . 1 2 . . . Terminal Hacks 36 | . 8 . 12 1 4 5 1 . 1 . . 2 2 Robot Analysis 2 | . 1 . 1 . . . . . . . . . . Prototype ID Bank 9 | . 4 . 4 . . 1 . . . . . . . Open Door 2 | . . . . . 2 . . . . . . . . Level Access Points 1 | . . . . . . . . . . . . 1 . Branch Access Points 3 | . . . 1 1 . . . . . . . 1 . Alert Level 7 | . 1 . 2 . . 1 1 . 1 . . . 1 Unreport Threat 6 | . . . 3 . 2 1 . . . . . . . Locate Traps 1 | . 1 . . . . . . . . . . . . Zone Layout 2 | . 1 . 1 . . . . . . . . . . Disengage Seal 1 | . . . . . . . . . . . . . 1 Release Object 2 | . . . . . . 2 . . . . . . . Fabricator Hacks . | . . . . . . . . . . . . . . Repair Station Hacks 2 | . . . 2 . . . . . . . . . . Scan Component 1 | . . . 1 . . . . . . . . . . Repair 1 | . . . 1 . . . . . . . . . . Recycling Unit Hacks 14 | . 2 . 1 3 . 7 . . 1 . . . . Retrieve Components 14 | . 2 . 1 3 . 7 . . 1 . . . . Scanalyzer 8 | . . . 6 . . . 1 . 1 . . . . Insert Component 1 | . . . 1 . . . . . . . . . . Analyze 1 | . . . 1 . . . . . . . . . . Retrieve Study 6 | . . . 4 . . . 1 . 1 . . . . Garrison Access Hacks 1 | . . . 1 . . . . . . . . . . Unlock Access 1 | . . . 1 . . . . . . . . . . Unauthorized Hacks 22 | . 1 . 2 . 1 17 . . . . . . 1 Terminals 6 | . 1 . 2 . 1 1 . . . . . . 1 Botnet 6 | . 1 . 2 . 1 1 . . . . . . 1 Fabricators . | . . . . . . . . . . . . . . Repair Stations . | . . . . . . . . . . . . . . Recycling Units 16 | . . . . . . 16 . . . . . . . Reject 7 | . . . . . . 7 . . . . . . . Mask 2 | . . . . . . 2 . . . . . . . Tunnel 7 | . . . . . . 7 . . . . . . . Scanalyzers . | . . . . . . . . . . . . . . Garrison Access . | . . . . . . . . . . . . . . Data Cores Recovered 2 | . . . 1 1 . . . . . . . . . Used 1 | . . . . 1 . . . . . . . . . Hacking Detections 63 | . 8 . 11 5 2 10 3 1 4 5 3 3 8 Full Trace Events 11 | . 1 . . 1 . 3 . . . 3 1 . 2 Feedback Events . | . . . . . . . . . . . . . . Feedback Blocked . | . . . . . . . . . . . . . . Robot Schematics Acquired 2 | . . . . . . . . . . 2 . . . Robots Built . | . . . . . . . . . . . . . . Authchips . | . . . . . . . . . . . . . . Time . | . . . . . . . . . . . . . . Total Robot Build Rating . | . . . . . . . . . . . . . . Part Schematics Acquired 4 | . . . 1 . . . . . . 3 . . . Parts Built . | . . . . . . . . . . . . . . Authchips . | . . . . . . . . . . . . . . Time . | . . . . . . . . . . . . . . Total Part Build Rating . | . . . . . . . . . . . . . . Part Studies Acquired 6 | . . . 4 . . . 1 . 1 . . . . Parts Repaired 1 | . . . 1 . . . . . . . . . . Time 26 | . . . 26 . . . . . . . . . . Parts Recycled . | . . . . . . . . . . . . . . Recycled Matter . | . . . . . . . . . . . . . . Retrieved Matter . | . . . . . . . . . . . . . . Retrieved Components 35 | . . . 9 8 . 15 . . 3 . . . . Parts Scanalyzed 1 | . . . 1 . . . . . . . . . . Part Schematics Acquired 1 | . . . 1 . . . . . . . . . . Parts Damaged . | . . . . . . . . . . . . . . Bothacking | -11 -10 -10 -8 -7 -7 -7 -5 -4 -3 -3 -2 -1 -1 ------------ Run | Yrd Mat Sub Mat Fac Sto Rec Fac Fac Res Qua Res Acc Com Used RIF Installer . | . . . . . . . . . . . . . . Robots Hacked . | . . . . . . . . . . . . . . Non-combat . | . . . . . . . . . . . . . . Combat . | . . . . . . . . . . . . . . Robot Hacks Applied . | . . . . . . . . . . . . . . Relay Couplers Released 6 | . . . 3 . . . . . . . 3 . . Machine Destruction 3 | . . . 3 . . . . . . . . . . Programmers 3 | . . . . . . . . . . . 3 . . Fabnet Peak Effective % . | . . . . . . . . . . . . . . Robots Rewired . | . . . . . . . . . . . . . . Allies Hacked . | . . . . . . . . . . . . . . Hacks Repelled . | . . . . . . . . . . . . . . Allies | -11 -10 -10 -8 -7 -7 -7 -5 -4 -3 -3 -2 -1 -1 -------- Run | Yrd Mat Sub Mat Fac Sto Rec Fac Fac Res Qua Res Acc Com Total Allies 60 | . . . . . 10 3 3 4 . 5 . . 35 Largest Group 14 | . . . . . 10 5 3 4 4 5 . . 14 Highest-Rated Group 612 | . . . . . 173 93 168 224 224 150 . . 612 Highest-Rated Ally 234 | . . . . . 29 79 56 56 56 56 . . 234 Total Orders . | . . . . . . . . . . . . . . Ally Attacks 325 | . . . . . 25 35 23 8 28 59 . . 147 Total Damage 8310 | . . . . . 288 758 1001 274 1241 1535 . . 3213 Kills 44 | . . . . . 3 5 4 2 4 9 . . 17 Allies Corrupted . | . . . . . . . . . . . . . . Allies Melted . | . . . . . . . . . . . . . . X0-1V1 Amusement Gains 278 | . 17 . 10 . . . 30 40 10 70 20 30 51 Good Acts 152 | . . . 5 4 9 51 16 5 3 15 16 4 24 Bad Acts 136 | . . 1 9 3 3 87 17 . 1 6 4 1 4 Intel | -11 -10 -10 -8 -7 -7 -7 -5 -4 -3 -3 -2 -1 -1 ------- Run | Yrd Mat Sub Mat Fac Sto Rec Fac Fac Res Qua Res Acc Com Active Infowar (turns) 1696 | . . . . . . 653 555 321 166 . 1 . . Optics 1042 | . . . . . . . 555 321 166 . . . . Sensors 1 | . . . . . . . . . . . 1 . . Machine Analysis 653 | . . . . . . 653 . . . . . . . Robot Analysis Total 2 | . 1 . 1 . . . . . . . . . . Derelict Logs Recovered 2 | . . 2 . . . . . . . . . . . Drone Launches . | . . . . . . . . . . . . . . Drone Recoveries . | . . . . . . . . . . . . . . Exploration | -11 -10 -10 -8 -7 -7 -7 -5 -4 -3 -3 -2 -1 -1 ------------- Run | Yrd Mat Sub Mat Fac Sto Rec Fac Fac Res Qua Res Acc Com Turns Passed 15609 | 53 1469 406 1642 1060 1055 4361 663 321 341 1403 1117 373 1345 Spaces Moved 9424 | 34 820 216 916 604 377 1662 484 348 311 1005 576 531 1540 Core 22 | 10 . . . . . 12 . . . . . . . Treads 3457 | . 560 216 369 . . 183 158 . 24 19 103 531 1294 Legs 2481 | 24 260 . 547 143 . . 209 117 . 526 420 . 235 Wheels 2373 | . . . . 461 377 1467 68 . . . . . . Hover 529 | . . . . . . . . 231 287 . . . 11 Flight 562 | . . . . . . . 49 . . 460 53 . . Fastest Speed 48 | 50 120 160 110 110 210 119 63 55 55 78 59 59 48 Average Speed 127 | 108 147 160 135 138 224 223 96 57 90 98 111 59 57 Slowest Speed 1550 | 120 160 160 260 225 240 1550 196 63 145 154 126 59 59 Overloaded Moves . | . . . . . . . . . . . . . . Propulsion Burnouts . | . . . . . . . . . . . . . . Robots Hopped . | . . . . . . . . . . . . . . Potential Cave-ins . | . . . . . . . . . . . . . . Cave-ins Triggered . | . . . . . . . . . . . . . . Teleports 3 | . . . . . . . . . . 3 . . . Exploration Rate (%) 40 | 3 96 12 73 16 70 98 16 9 13 76 17 19 44 Regions Visited 13 Branch Regions 5 Pre-discovered Areas 8 | . . 1 . . . 7 . . . . . . . Known Exits Taken 5 | . . . 1 1 . . 1 . . 1 . 1 . Unknown Exits Taken 8 | 1 1 1 . . 1 1 . 1 1 . 1 . . Scrap Searched 2 | . . 2 . . . . . . . . . . . Spaces Dug 40 | . . . 2 . . . 5 1 9 11 8 . 4 Terrain Destroyed 352 | . 35 10 60 . . 9 18 5 16 52 73 15 59 Melee . | . . . . . . . . . . . . . . Projectile 214 | . . . 2 . . 9 13 5 16 52 60 6 51 AOE 137 | . 35 10 58 . . . 4 . . . 13 9 8 Terrain Rammed . | . . . . . . . . . . . . . . Walls Destroyed . | . . . . . . . . . . . . . . Machines Disabled . | . . . . . . . . . . . . . . Actions | -11 -10 -10 -8 -7 -7 -7 -5 -4 -3 -3 -2 -1 -1 --------- Run | Yrd Mat Sub Mat Fac Sto Rec Fac Fac Res Qua Res Acc Com Total 11703 | 47 969 254 1137 743 496 2169 606 427 350 1251 835 570 1849 Wait 1026 | . 52 10 79 23 35 357 68 42 11 81 114 16 138 Move 9412 | 34 819 215 915 603 376 1661 483 347 310 1004 576 530 1539 Hop . | . . . . . . . . . . . . . . Pick Up 132 | 7 14 7 16 22 5 26 5 5 7 13 1 1 3 Fast Attach 82 | 5 4 . 7 9 9 6 2 3 1 11 11 . 14 Attach 53 | 1 3 3 9 3 3 8 2 2 1 6 3 1 8 Detach 12 | . . . 1 2 2 4 . . . . 2 . 1 Swap 81 | . 10 2 14 22 5 4 . 2 1 6 5 . 10 Drop 148 | . 6 4 15 20 8 41 7 2 7 21 6 . 11 Fire 673 | . 56 13 81 39 37 62 39 23 12 106 99 12 94 Melee 12 | . . . . . . . . . . 3 5 . 4 Ram . | . . . . . . . . . . . . . . Kick 9 | . 2 . . . . . . 1 . . 6 . . Crush 47 | . 3 . . . . . . . . . 7 10 27 Escape Stasis 16 | . . . . . 16 . . . . . . . . Rewire . | . . . . . . . . . . . . . . Trap . | . . . . . . . . . . . . . . Miscellaneous . | . . . . . . . . . . . . . . Route ------- -11/Scrapyard -10/Materials (discovered 5 exits: [*Mat x3] / [*Min] / [*Sub]) -10/Subcaves -8/Materials -7/Factory (discovered 3 exits: *Sto / *Low x2) -7/Storage (discovered 2 exits: [*Fac] / *Rec) -7/Recycling -5/Factory (discovered 3 exits: *Fac x2 / Upp) -4/Factory -3/Research -3/Quarantine -2/Research -1/Access (discovered 2 exits: Sur / *Com) -1/Command (discovered 2 exits: *Sur / Ac0) Tau Ceti IV Orbit History --------- Turn | Location | Event 25 | -11/Scrapyard | Discovered new exit (range 15) 54 | -11/Scrapyard | Entered Materials 189 | -10/Materials | Discovered new exit (range 15) 315 | -10/Materials | Build established: Mutant 345 | -10/Materials | Discovered new exit (range 5) 441 | -10/Materials | Discovered new exit (range 3) 534 | -10/Materials | Discovered new exit (range 6) 879 | -10/Materials | Discovered new exit (range 8) 954 | -10/Materials | Derelicts attacked the area 1509 | -10/Materials | Prayed at D.C.S.S. Altar Unit 1523 | -10/Materials | Entered Subcaves 1524 | -10/Subcaves | Approached by a straggling Scientist 1555 | -10/Subcaves | Ambushed by Subdweller buried in earth 1571 | -10/Subcaves | Learned location of Zion (-6) 1591 | -10/Subcaves | Learned 4 Materials zone layouts 1667 | -10/Subcaves | Core integrity fell below 50% 1920 | -10/Subcaves | Discovered new exit (range 8) 1927 | -10/Subcaves | A swath of the cavern ceiling suddenly collapsed 1929 | -10/Subcaves | Entered Materials 1929 | -8/Materials | Evolved 4 slots: Propulsion x1, Utility x2, Weapon x1 2038 | -8/Materials | X0-1V1 sent hostile G-34 Mercenary (x3) 2108 | -8/Materials | Repaired Lgt. Treads 2254 | -8/Materials | Melee accuracy permanently improved by X0-1V1 (+8%; -80 max core) 2495 | -8/Materials | Garrison activated, responded to threat 2513 | -8/Materials | X0-1V1 added 0b10 threat records associated with you (considerable) 2590 | -8/Materials | Identified exit to Garrison 2702 | -8/Materials | Lost 7 parts (1p3n3w) 2714 | -8/Materials | Destroyed 9 combat bots 2976 | -8/Materials | X0-1V1 announced a LAN party 3248 | -8/Materials | Identified exit to Factory 3248 | -8/Materials | X0-1V1 revealed exit location to -7/Factory 3312 | -8/Materials | Build established: Gunner 3547 | -8/Materials | Central database locked down 3571 | -8/Materials | Entered Factory 3571 | -7/Factory | Evolved 2 slots: Utility x2 3611 | -7/Factory | Identified exit to Storage 3611 | -7/Factory | Identified exit to Lower Caves 3766 | -7/Factory | Core integrity permanently improved by X0-1V1 (+250) 4057 | -7/Factory | Found Rocket Array 4159 | -7/Factory | Build established: Scavenger-Tank 4392 | -7/Factory | X0-1V1 sent you into danger 4631 | -7/Factory | Entered Storage 4746 | -7/Storage | X0-1V1 foreshadows a heat wave 4936 | -7/Storage | Matter capacity permanently improved by X0-1V1 (+400; -200 max core) 5019 | -7/Storage | X0-1V1 sent you into danger 5022 | -7/Storage | Ambient heat levels rising (+10) 5038 | -7/Storage | X0-1V1 mutated your Utility slot to Power slot 5142 | -7/Storage | X0-1V1 activates XOMVISION 5254 | -7/Storage | System corruption reached 10% 5268 | -7/Storage | Discovered new exit (range 15) 5288 | -7/Storage | Ambient heat levels rising (+10) 5325 | -7/Storage | Build established: Scavenger-Gunner 5418 | -7/Storage | Assisted by bots powering up and referring to "LRC-V3" 5553 | -7/Storage | P-60 Hacker assimilated allied Trooper 4e 5577 | -7/Storage | Lost 3 allies 5667 | -7/Storage | Used back door to open Recycling access 5667 | -7/Storage | Discovered new exit (range 5) 5686 | -7/Storage | Ambient heat levels falling (-10) 5686 | -7/Storage | Entered Recycling 5686 | -7/Recycling | Accompanied by 5 allies 6112 | -7/Recycling | X0-1V1 vaporized surrounding terrain (radius 17) 6414 | -7/Recycling | X0-1V1 rewrote Soldier 4a IFF filter 6773 | -7/Recycling | Discovered new exit (range 21) 7475 | -7/Recycling | X0-1V1 rewrote Trooper 4i IFF filter 7478 | -7/Recycling | X0-1V1 mutated your Propulsion slot to Weapon slot 7502 | -7/Recycling | X0-1V1 sent you into danger 7516 | -7/Recycling | X0-1V1 added 0b10 threat records associated with you (major) 7518 | -7/Recycling | X0-1V1 vaporized surrounding terrain (radius 21) 7524 | -7/Recycling | System corruption reached 30% 7547 | -7/Recycling | X0-1V1 sent hostile Y-54 Guardian (x2) 7565 | -7/Recycling | X0-1V1 upgraded hostiles (x3) 7569 | -7/Recycling | X0-1V1 whisked you away to safety 7571 | -7/Recycling | X0-1V1 mutated your Weapon slot to Utility slot 7585 | -7/Recycling | X0-1V1 activates XOMVISION 7641 | -7/Recycling | Core integrity restored by X0-1V1 (+134) 7685 | -7/Recycling | X0-1V1 sent hostile H-55 Commando (x2) 7774 | -7/Recycling | X0-1V1 vaporized surrounding terrain (radius 24) 7903 | -7/Recycling | X0-1V1 added 0b10 threat records associated with you (minor) 7905 | -7/Recycling | X0-1V1 sent you into danger 7912 | -7/Recycling | X0-1V1 sent allied G-47 Trooper (x2) 8004 | -7/Recycling | X0-1V1 activates XOMVISION 8086 | -7/Recycling | X0-1V1 vaporized surrounding terrain (radius 21) 8098 | -7/Recycling | Weapon slot count temporarily expanded by X0-1V1 (+3) 8140 | -7/Recycling | X0-1V1 rewrote G-47 Trooper IFF filter 8155 | -7/Recycling | X0-1V1 vaporized surrounding terrain (radius 21) 8337 | -7/Recycling | X0-1V1 rewrote G-47 Trooper IFF filter 8346 | -7/Recycling | X0-1V1 added 0b10 threat records associated with you (considerable) 8351 | -7/Recycling | X0-1V1 vaporized surrounding terrain (radius 23) 8367 | -7/Recycling | X0-1V1 mutated your Utility slot to Propulsion slot 8439 | -7/Recycling | X0-1V1 upgraded hostiles (x2) 8450 | -7/Recycling | X0-1V1 sent allied Chaos Knight 2.0 (x1) 8495 | -7/Recycling | X0-1V1 rewrote Hepliaklqana IFF filter 8495 | -7/Recycling | Spotted Hepliaklqana 8507 | -7/Recycling | Lost 4 parts (1p3w) 8567 | -7/Recycling | X0-1V1 vaporized surrounding terrain (radius 22) 8620 | -7/Recycling | X0-1V1 added 0b10 threat records associated with you (major) 8626 | -7/Recycling | Found Prototype Device 8626 | -7/Recycling | Identified Scrap Engine 8627 | -7/Recycling | Entered Scraplab 8748 | -7/Recycling | X0-1V1 rewrote Hepliaklqana IFF filter 8869 | -7/Recycling | Build established: Mutant 8970 | -7/Recycling | Destroyed Hepliaklqana 9298 | -7/Recycling | Core integrity restored by X0-1V1 (+127) 9684 | -7/Recycling | Build established: Construct 9995 | -7/Recycling | X0-1V1 activates XOMVISION 10011 | -7/Recycling | X0-1V1 mutated your Propulsion slot to Weapon slot 10025 | -7/Recycling | X0-1V1 vaporized surrounding terrain (radius 17) 10047 | -7/Recycling | Entered Factory 10047 | -5/Factory | Evolved 4 slots: Propulsion x2, Utility x2 10074 | -5/Factory | Identified exit to Factory 10074 | -5/Factory | X0-1V1 revealed exit location to -4/Factory 10080 | -5/Factory | X0-1V1 released a cloud of subatomizers 10087 | -5/Factory | X0-1V1 sent hostile G-50 Soldier (x4) 10089 | -5/Factory | Weapon slot count temporarily expanded by X0-1V1 (+3) 10091 | -5/Factory | X0-1V1 sent you to a vault 10100 | -5/Factory | X0-1V1 redirected Transport squads to designated parking area 10102 | -5/Factory | X0-1V1 added 0b10 threat records associated with you (considerable) 10108 | -5/Factory | X0-1V1 enhanced Transport squad support 10156 | -5/Factory | X0-1V1 mutated your Weapon slot to Propulsion slot 10172 | -5/Factory | Discovered exit to Factory (range 23) 10176 | -5/Factory | X0-1V1 announced a LAN party 10182 | -5/Factory | X0-1V1 sent someone to keep an eye on you 10196 | -5/Factory | X0-1V1 sent you into danger 10198 | -5/Factory | X0-1V1 upgraded hostiles (x3) 10199 | -5/Factory | X0-1V1 whisked you away to safety 10201 | -5/Factory | X0-1V1 vaporized surrounding terrain (radius 21) 10211 | -5/Factory | Allied Derelicts emerged from ambush trap array 10217 | -5/Factory | Garrison activated, responded to threat 10224 | -5/Factory | Identified exit to Upper Caves 10224 | -5/Factory | X0-1V1 revealed exit location to -5/Upper Caves 10491 | -5/Factory | X0-1V1 activates XOMVISION 10567 | -5/Factory | X0-1V1 added 0b10 threat records associated with you (minor) 10647 | -5/Factory | First assault squad dispatched 10710 | -5/Factory | Entered another Factory area 10710 | -4/Factory | Evolved 2 slots: Utility x2 10748 | -4/Factory | X0-1V1 sent you to a vault 10771 | -4/Factory | Spotted B-86 Titan 10909 | -4/Factory | Discovered new exit (range 17) 10960 | -4/Factory | First assault squad dispatched 11031 | -4/Factory | Entered Research 11031 | -3/Research | Accompanied by 4 allies 11031 | -3/Research | Evolved 2 slots: Utility x1, Weapon x1 11052 | -3/Research | Build established: Commander-Construct 11293 | -3/Research | X0-1V1 vaporized surrounding terrain (radius 16) 11344 | -3/Research | Discovered new exit (range 18) 11372 | -3/Research | Entered Quarantine 11372 | -3/Quarantine | Accompanied by 3 allies 11403 | -3/Quarantine | Found Alien Artifact 11403 | -3/Quarantine | Identified Phase Redirector 11460 | -3/Quarantine | Build established: Construct 11504 | -3/Quarantine | X0-1V1 rewrote Assassin 7b IFF filter 11508 | -3/Quarantine | Cryocooling Duct disabled 11523 | -3/Quarantine | Ambient heat levels rising (+20) 11523 | -3/Quarantine | Non-combat units ordered to evacuate 11559 | -3/Quarantine | Found Alien Artifact 11559 | -3/Quarantine | Identified Core Reset Matrix 11559 | -3/Quarantine | Used Core Reset Matrix 11563 | -3/Quarantine | Detected hypermatrix surge 11563 | -3/Quarantine | Sensed 13 artifacts in vicinity 11587 | -3/Quarantine | X0-1V1 vaporized surrounding terrain (radius 16) 11622 | -3/Quarantine | First assault squad dispatched 11677 | -3/Quarantine | Identified exit to Research 11677 | -3/Quarantine | X0-1V1 revealed exit location to -2/Research 11777 | -3/Quarantine | X0-1V1 downgraded hostiles (x1) 11784 | -3/Quarantine | Lost 3 parts (2u1w) 11803 | -3/Quarantine | Destroyed 10 combat bots 11837 | -3/Quarantine | Found Prototype Device 11837 | -3/Quarantine | Identified Exp. Thermal Defense Suite 12132 | -3/Quarantine | Found Sigix Broadsword 12190 | -3/Quarantine | Found Phase Armor 12323 | -3/Quarantine | Found Subatomic Replicator 12332 | -3/Quarantine | X0-1V1 announced a LAN party 12370 | -3/Quarantine | Found Dimensional Node Initializer 12370 | -3/Quarantine | Initialized slip node 12378 | -3/Quarantine | Found Transdimensional Reconstructor 12381 | -3/Quarantine | Found Transdimensional Reconstructor 12528 | -3/Quarantine | Met incapacitated Sigix Warrior 12528 | -3/Quarantine | Lockdown squad dispatched 12536 | -3/Quarantine | Found Sigix Containment Pod 12550 | -3/Quarantine | Warped through subspace to slip node 12555 | -3/Quarantine | Found Hpw. Transdimensional Reconstructor 12555 | -3/Quarantine | Warped through subspace to slip node 12562 | -3/Quarantine | Found Transdimensional Reconstructor 12727 | -3/Quarantine | Warped through subspace to slip node 12740 | -3/Quarantine | X0-1V1 sent you to a vault 12775 | -3/Quarantine | Entered Research 12775 | -2/Research | Evolved 2 slots: Utility x2 12797 | -2/Research | Lost 3 allies 12823 | -2/Research | X0-1V1 added 0b10 threat records associated with you (considerable) 13208 | -2/Research | Garrison activated, responded to threat 13275 | -2/Research | First assault squad dispatched 13325 | -2/Research | X0-1V1 sent you to a vault 13348 | -2/Research | Found Prototype Device 13348 | -2/Research | Identified Thermal Barrier 13358 | -2/Research | Found Prototype Device 13358 | -2/Research | Identified Exp. Sensor Array 13361 | -2/Research | Found Prototype Device 13361 | -2/Research | Identified Exp. Actuator Array 13474 | -2/Research | X0-1V1 redirected Transport squads to designated parking area 13632 | -2/Research | Destroyed 9 combat bots 13856 | -2/Research | Spotted B-90 Cyclops 13889 | -2/Research | Discovered new exit (range 7) 13892 | -2/Research | Entered Access 13892 | -1/Access | Evolved 2 slots: Utility x2 13895 | -1/Access | X0-1V1 destroyed Energy Cycler 13895 | -1/Access | Energy Cycler disabled 13905 | -1/Access | Identified exit to Surface 14017 | -1/Access | Identified exit to Command 14142 | -1/Access | First assault squad dispatched 14265 | -1/Access | Entered Command 14305 | -1/Command | Spotted B-99 Colossus 14419 | -1/Command | X0-1V1 activates XOMVISION 14511 | -1/Command | Identified exit to Access_0 14511 | -1/Command | X0-1V1 revealed exit location to -1/Access_0 14515 | -1/Command | First assault squad dispatched 14551 | -1/Command | X0-1V1 sent you to a vault 14568 | -1/Command | Found Prototype Device 14568 | -1/Command | Identified Exp. Phase Shifter 14713 | -1/Command | Build established: Scavenger-Construct 14767 | -1/Command | X0-1V1 sent allied Thug (x3) 14914 | -1/Command | Used Subatomic Replicator to replicate Hacking Suite 15097 | -1/Command | Found Prototype Processor 15097 | -1/Command | Identified Exp. Signal Interpreter 15139 | -1/Command | Build established: Hacker-Construct 15189 | -1/Command | Failed to warp due to unstable space 15234 | -1/Command | X0-1V1 turns hostiles against one another 15347 | -1/Command | Disengaged cave seal 15347 | -1/Command | Assembled emerged from the dark tunnel 15430 | -1/Command | Weapon slot count temporarily expanded by X0-1V1 (+1) 15460 | -1/Command | High security lockdown imminent 15477 | -1/Command | Destroyed 7 combat bots 15486 | -1/Command | Lost 10 allies 15513 | -1/Command | System corruption reached 10% 15513 | -1/Command | Core integrity restored by X0-1V1 (+423) 15540 | -1/Command | High security lockdown engaged 15547 | -1/Command | Lost 4 allies 15562 | -1/Command | Spotted Executioner 15562 | -1/Command | Spotted Executioner 15562 | -1/Command | Spotted Striker 15562 | -1/Command | Spotted Alpha 7 15562 | -1/Command | Spotted Executioner 15562 | -1/Command | Spotted Executioner 15562 | -1/Command | Spotted Striker 15562 | -1/Command | Spotted Alpha 7 15563 | -1/Command | Spotted B-99 Colossus 15565 | -1/Command | Spotted B-99 Colossus 15567 | -1/Command | Discovered exit to Surface (range 8) 15577 | -1/Command | Destroyed Executioner 15577 | -1/Command | Destroyed Executioner 15610 | *** | Destroyed 0b10! Last Messages --------------- 15606_ Field strength at 37. 15608_ X0-1V1 uses you as a vessel of destruction. 15608_ Field strength at 7. 15609_ Field strength at 22. 15609_ Adv. Force Field destroyed. 15609_ Sigix Broadsword destroyed. 15609_ X0-1V1 is amused. 15609_ Knocked back. 15609_ Slug penetrates Wall. 15609_ Stasis field depleted. 15610_ 78PDAC%PQ3T2KF CX,B2Z7T 15610_ Slug penetrates Wall. 15610_ Penetrated by Slug. 15610_ Critical hit (Destroy). 15610_ Arm. Scrap Engine destroyed. 15610_ Scrap Engine core remains intact and functional. 15610_ Slug penetrates Wall. [Achievement: Payload Armed] Map ----- +----------------------------------------------------+ | ??????###????# #????# # "" #? | | ?????????????# ##???# " # #? | | ?????????????# "#???# ""T " + +? | | ?????????????# % ##???# "" "" ###########? | | ???????????### #????# #??????????? | | ????????##?# # #????# [#??????????? | | ????????# ?# # #????# #??????????? | | ????????#"##"#####+####################??????????? | | ????????# #?????????????????????? | | ????????# #?????????????????????? | | ???????## #?????????????????????? | | ???????#" #?????????????????????? | | ???????## [ "" "" #?????????????????????? | | ????????# = ["""" """" #?????????????????????? | | ????????#!% """" """" #?????????????????????? | | ????????# = "" "" #?????????????????????? | | ????????###""###############?????????????????????? | | ??????????# #???????????????????????????????????? | | ??????????# #?????????###?###???????????????????? | | ??????????# #?????#####;##;;####????????????????? | | ??????????# #?????# #????????????????? | | ??????????# #?????# #????????????????? | | ??????????# #?????# ^ ^ #????????????????? | | ??????????# #?????# #????????????????? | | ??????????# #?????# ^ #????????????????? | | ??????????# #?????# @" #????????????????? | | ?????????## ##???## "" ^ #????????????????? | | ?????????# #???#; % ^ ##???????????????? | | ?????????# "" #???## %% ;#???????????????? | | ?????????# T" #????# K%^%^^ ##???????????????? | | ?????????# #????# BB!!! #????????????????? | | ?????????## ##????# BB !% % #????????????????? | | ??????????# #?????## ^ ^ ###????????????????? | | ??????????# #??????# 77 E #?????????????????? | | ??????????# #??????# # ^ ###?????????????????? | | ??????????# #??????# ^ ^ #??????????????????? | | ??????????# #??????# ^ ^ ##??????????????????? | | ??????????# #??????## [ #??????????????????? | | ??????????# #???????# ^ !% ##??????????????????? | | ??????????# #???????# ^^ #??????????????????? | | ??????????# #???????##^ ^ ##??????????????????? | | ??????????# #????????# ^ #???????????????????? | | ??????????# #????????##+++ " ???????????????????? | | ??????????# #########?#% ##???????????????????? | | ??????????# # " #????????????????????? | | ??????????# # # #????????????????????? | | ??????????# # + #######??????????????? | | ??????????# # # +??????????????? | | ??????????# # # #??????????????? | | ??????????# # ?# ######?????????? | +----------------------------------------------------+ Best States ------------- Heat Dissipation 204 Coolant Potential 80 Energy Generation 80 Energy Capacity 3049 Matter Stores 1300 Matter Capacity 1300 Sight Range 24 Terrain Scan Density 10 Base Temperature (-) 200 Armor Coverage 800 Resistance: KI 30 Resistance: TH 50 Resistance: EM 46 Power Shielding 66 Weapon Cycling 20 Phase Shifting 20 Evasion (%) 68 Recoil Reduction 5 Kinecelleration 40 Offensive Hacking 30 Defensive Hacking 12 Item Schematics ----------------- None Robot Schematics ------------------ None Fabricated ------------ Nothing Repaired ---------- Lgt. Treads | 25% | -8/Materials Studied --------- None Alien Tech Used ----------------- Phase Redirector Core Reset Matrix Phase Armor Dimensional Node Initializer Sigix Broadsword Transdimensional Reconstructor High-powered Transdimensional Reconstructor Subatomic Replicator Achievements -------------- Payload Armed Challenges ------------ None Game ------ Seed VoltaicZipFlail Manual? 0 Play Time 02:57:21 Cumulative 506.4 hours Start 2026.07.24 @ 23:02:52 End 2026.07.25 @ 03:39:55 Sessions 3 Manual Loads 0 Difficulty Rogue Special Mode None Game No. 258 Rogue 258 Adventurer 0 Explorer 0 Win Type 3 Total 16 Types 10/0/2/1/0/0/0/1/0/2 Lore% 86 Gallery% 81 Achievement% 69 Wizard Run 0 Options --------- Layout 0 ASCII 0 Keyboard 0 Movement Mouse Keybinds 0 Fullscreen 1 Font 18/SmallcapsGlow Map View 76x50 Zoom Use 0% Tactical HUD 1 Map Filters NONE Filters NONE Steam 1 RUN: dc2e9c73-f84b-44e1-baa1-8faca37d65ec